Workbook

Sheet Manually
B2: Dataset for Expected Return
B4: Investment | C4: 2023 | D4: 2024 | E4: 2025 | F4: 2026 | G4: Weight | H4: Each Investment Return
B5: Investment1 | C5: 0.03 | D5: 0.05 | E5: 0.07 | F5: 0.1 | G5: 0.25 | H5: =C5*G5+D5*G5+E5*G5+F5*G5 -> 0.0625
B6: Investment2 | C6: -0.05 | D6: 0.06 | E6: 0.1 | F6: 0.15 | G6: 0.25 | H6: =C6*G6+D6*G6+E6*G6+F6*G6 -> 0.065
B7: Investment3 | C7: 0.06 | D7: 0.06 | E7: 0.06 | F7: 0.06 | G7: 0.25 | H7: 0.06
B8: Investment4 | C8: 0.03 | D8: 0.07 | E8: 0.08 | F8: 0.1 | G8: 0.25 | H8: 0.07
B9: Each Year Return | C9: =C5*$G$5+C6*$G$6+C7*$G$7+C8*$G$8 -> 0.0175 | D9: =D5*$G$5+D6*$G$6+D7*$G$7+D8*$G$8 -> 0.06 | E9: 0.0775 | F9: 0.1025
C12: Total Expected Return | F12: =(C9+D9+E9+F9)/4 -> 0.064375

Sheet Function
B2: Expected Return with Function
B4: Investment | C4: 2023 | D4: 2024 | E4: 2025 | F4: 2026 | G4: Weight | H4: Each Investment Return
B5: Investment1 | C5: 0.03 | D5: 0.05 | E5: 0.07 | F5: 0.1 | G5: 0.25 | H5: =PRODUCT(SUM(C5:F5), G5) -> 0.0625
B6: Investment2 | C6: -0.05 | D6: 0.06 | E6: 0.1 | F6: 0.15 | G6: 0.25 | H6: =PRODUCT(SUM(C6:F6), G6) -> 0.065
B7: Investment3 | C7: 0.06 | D7: 0.06 | E7: 0.06 | F7: 0.06 | G7: 0.25 | H7: 0.06
B8: Investment4 | C8: 0.03 | D8: 0.07 | E8: 0.08 | F8: 0.1 | G8: 0.25 | H8: 0.07
B9: Each Year Return | C9: =SUMPRODUCT(C5:C8,$G$5:$G$8) -> 0.0175 | D9: =SUMPRODUCT(D5:D8,$G$5:$G$8) -> 0.06 | E9: 0.0775 | F9: 0.1025
C12: Total Expected Return | F12: =AVERAGE(H5:H8) -> 0.064375

Sheet VBA
B2: Finding Expected Return with VBA Code
B4: Investment | C4: 2023 | D4: 2024 | E4: 2025 | F4: 2026 | G4: Weight | H4: Each Investment Return
B5: Investment1 | C5: 0.03 | D5: 0.05 | E5: 0.07 | F5: 0.1 | G5: 0.2 | H5: =PRODUCT(SUM(C5:F5), G5) -> 0.05
B6: Investment2 | C6: -0.05 | D6: 0.06 | E6: 0.1 | F6: 0.15 | G6: 0.3 | H6: =PRODUCT(SUM(C6:F6), G6) -> 0.078
B7: Investment3 | C7: 0.06 | D7: 0.06 | E7: 0.06 | F7: 0.06 | G7: 0.35 | H7: 0.084
B8: Investment4 | C8: 0.03 | D8: 0.07 | E8: 0.08 | F8: 0.1 | G8: 0.15 | H8: 0.042
B9: Each Year Return | C9: =SUMPRODUCT(C5:C8,$G$5:$G$8) -> 0.0165 | D9: =SUMPRODUCT(D5:D8,$G$5:$G$8) -> 0.0595 | E9: 0.077 | F9: 0.101
C12: Total Expected Return | F12: =AVERAGE(C9:F9) -> 0.0635
